Cogmind - Beta 15 @@@ ROGUE MODE // 2025.06.08 @ 23:16:07 Player: CL-1C0 Result: Self-destructed Performance ------------- Evolutions (3) 1500 Regions Visited (5) 1000 Robots Destroyed (22) 110 Value Destroyed (393) 393 Prototype IDs (5) 100 Alien Tech Used (0) 0 Bonus (200) 200 TOTAL SCORE: 3303 Bonus ------- Pacifist 200 Cogmind --------- Core Integrity 700/700 Matter 140/300 Energy 70/100 System Corruption 0% Temperature Cool (0) Movement Core (100) Ox1 Location -7/Factory Parts ------- > --- POWER (1) -------- (None) > --- PROPULSION (4) --- (None) > --- UTILITY (6) ------ Experimental Targeting Computer > --- WEAPON (2) ------- Advanced EMP Blaster > --- INVENTORY (5) ---- Rocket Launcher Peak State ------------ > --- POWER ------------ (None) > --- PROPULSION ------- Aerolev Unit Aerolev Unit Aerolev Unit > --- UTILITY ---------- (None) > --- WEAPON ----------- Rocket Launcher Katana > --- INVENTORY -------- Shock Bomb Launcher Shock Bomb Launcher Plasma Cutter Plasma Cutter [Rating: 18] Favorites ----------- Power Light Ion Engine Engine Light Ion Engine Propulsion Aerolev Unit Treads Light Treads Hover Unit Aerolev Unit Flight Unit Flight Unit Utility Experimental Targeting Computer Processor Experimental Targeting Computer Weapon Katana Launcher Advanced EMP Blaster Special Weapon Plasma Cutter Slashing Weapon Katana Build | -11 -10 -9 -8 -8 -7 ------- Run | Yrd Mat Mat Mat Sto Fac Slots Evolved 6 | . . 2 2 . 2 Power . | . . . . . . Propulsion 2 | . . 1 1 . . Utility 4 | . . 1 1 . 2 Weapon . | . . . . . . Parts Attached 17 | 2 . 7 5 2 1 Power 1 | . . . 1 . . Engine 1 | . . . 1 . . Core . | . . . . . . Reactor . | . . . . . . Propulsion 9 | 2 . 3 4 . . Treads 2 | 2 . . . . . Leg . | . . . . . . Wheel . | . . . . . . Hover 3 | . . 3 . . . Flight 4 | . . . 4 . . Utility 1 | . . . . . 1 Device . | . . . . . . Storage . | . . . . . . Processor 1 | . . . . . 1 Hackware . | . . . . . . Protection . | . . . . . . Artifact . | . . . . . . Weapon 6 | . . 4 . 2 . Energy Gun . | . . . . . . Energy Cannon . | . . . . . . Ballistic Gun . | . . . . . . Ballistic Cannon . | . . . . . . Launcher 4 | . . 3 . 1 . Special Weapon 1 | . . . . 1 . Impact Weapon . | . . . . . . Slashing Weapon 1 | . . 1 . . . Piercing Weapon . | . . . . . . Special Melee Weapon . | . . . . . . Unidentified Prototypes 3 | . . 1 . 1 1 Parts Lost 8 | . . 1 . 7 . Power 1 | . . . . 1 . Propulsion 4 | . . . . 4 . Utility . | . . . . . . Weapon 3 | . . 1 . 2 . Highest Loss Streak 3 | . . 1 . 3 . To Critical Strikes 1 | . . . . 1 . Average Backups 2 | 4 . 3 2 2 2 Power . | 1 . . . . . Propulsion . | 3 . . . . . Utility . | . . . . . . Weapon 1 | . . 2 . 1 2 Tool/Special . | . . . . . . Unused Backups 2 | . . 2 . . . Power . | . . . . . . Propulsion . | . . . . . . Utility . | . . . . . . Weapon 1 | . . 1 . . . Tool/Special 1 | . . 1 . . . Average Slot Usage (%) 31 | . 28 33 38 31 7 Engine 1 | . . . . 3 . Treads 5 | . 28 3 . . . Hover 10 | . . 24 6 . . Flight 8 | . . . 22 18 . Launcher 3 | . . 3 . 5 . Slashing Weapon 3 | . . 2 9 3 . Peak Build Rating 18 | 2 2 18 12 11 10 Average Rating 7 | 1 2 11 9 5 8 On Entrance 4 | 6 2 2 7 8 1 Naked Turns 24 | . . . . 24 . Heaviest Build 9 | . . 6 5 9 . Greatest Support 24 | 3 3 24 16 16 . Greatest Overweight (x) 1 | . . 1 . . . Average Overweight (x) . | . . . . . . Largest Inventory Capacity 5 | 5 5 5 5 5 5 Average Capacity 5 | 5 5 5 5 5 5 Most Carried 5 | 4 1 5 4 3 2 Average Carried 2 | 2 . 3 1 2 1 Final Capacity 5 | 5 5 5 5 5 5 Final Carried 5 | . 1 5 2 3 1 Class Distribution -------------------- 59% | Mutant 40% | Scavenger-Mutant Dominant Class ---------------- Mutant | -10/Materials Mutant | -9/Materials Mutant | -8/Materials Mutant | -8/Storage Mutant | -7/Factory Resources | -11 -10 -9 -8 -8 -7 ----------- Run | Yrd Mat Mat Mat Sto Fac Matter Collected 493 | 200 . 144 3 146 . Remotely . | . . . . . . Salvage Created 358 | . . 209 17 132 . Parts 36 | . . 20 5 11 . Haulers Intercepted 4 | . . 2 . 2 . Recyclers Shooed 1 | . . . . 1 . Parts Field Recycled . | . . . . . . Retrieved Matter . | . . . . . . Parts Self-Destructed . | . . . . . . Prevented . | . . . . . . Kills | -11 -10 -9 -8 -8 -7 ------- Run | Yrd Mat Mat Mat Sto Fac Combat Hostiles Destroyed 16 | . . 8 4 4 . AOE 16 | . . 8 4 4 . Classes Destroyed 7 | . . 6 . 1 . Builder 1 | . . . . 1 . Hauler 4 | . . 2 . 2 . Watcher 1 | . . 1 . . . Swarmer 11 | . . 3 4 4 . Grunt 3 | . . 3 . . . Duelist 1 | . . 1 . . . Sentry 1 | . . 1 . . . Best Kill Streak 7 | . . 7 4 5 . Combat Bots Only 4 | . . 4 4 2 . Max Kills in Single Turn 4 | . . 4 3 2 . Gunslinging . | . . . . . . Exploded 3 | . . 3 3 2 . Melee . | . . . . . . Uniques/NPCs Destroyed . | . . . . . . Combat | -11 -10 -9 -8 -8 -7 -------- Run | Yrd Mat Mat Mat Sto Fac Hostile Shots Fired 119 | . . 46 13 60 . Missed 47 | . . 20 3 24 . Hits 72 | . . 26 10 36 . Melee 1 | . . 1 . . . Projectile 71 | . . 25 10 36 . Critical Strikes 2 | . . 1 . 1 . Damage Taken 1206 | . . 556 141 509 . Core 679 | . . 291 94 294 . Absorbed by Shields . | . . . . . . Core Remaining (%) 64 | 100 100 27 . 29 . Volleys Fired 27 | . . 16 3 8 . Largest 1 | . . 1 1 1 . Hottest 36 | . . 36 33 36 . Shots Fired 27 | . . 16 3 8 . Gun . | . . . . . . Cannon . | . . . . . . Launcher 27 | . . 16 3 8 . Special . | . . . . . . Kinetic . | . . . . . . Thermal . | . . . . . . Explosive 23 | . . 15 3 5 . Electromagnetic 4 | . . 1 . 3 . Robot Hit Streak 4 | . . 3 . 4 . Robot Miss Streak 1 | . . 1 . . . Penetration Max . | . . . . . . Secondary Targets . | . . . . . . Shots Hit Robots 7 | . . 6 . 1 . Core Hits 33 | . . 19 4 10 . Critical Kills . | . . . . . . Critical Parts Destroyed . | . . . . . . Critical Strikes . | . . . . . . Melee Attacks 4 | . . 2 . 2 . Impact . | . . . . . . Slashing 4 | . . 2 . 2 . Piercing . | . . . . . . Sneak Attacks . | . . . . . . Combat Hostiles . | . . . . . . Follow-up Attacks . | . . . . . . Damage Inflicted 1841 | . . 1128 216 497 . Guns . | . . . . . . Cannons . | . . . . . . Explosions 1828 | . . 1128 216 484 . Melee . | . . . . . . Ramming 13 | . . . . 13 . Kinetic . | . . . . . . Thermal . | . . . . . . Explosive 1552 | . . 1018 216 318 . Electromagnetic 276 | . . 110 . 166 . Impact . | . . . . . . Slashing . | . . . . . . Piercing . | . . . . . . Highest Corruption . | . . . . . . Average Corruption . | . . . . . . Corruption Purged . | . . . . . . Corruption Blocked . | . . . . . . Overload Shots . | . . . . . . Overflow Damage 23 | . . 20 3 . . Projectiles . | . . . . . . Explosions 23 | . . 20 3 . . Melee . | . . . . . . Knockbacks . | . . . . . . Impact . | . . . . . . Kinetic . | . . . . . . Secondary . | . . . . . . Self-Inflicted Damage 310 | . . 223 61 26 . Shots 10 | . . 7 2 1 . Rammed 2 | . . . . 2 . Targets Rammed 2 | . . . . 2 . Kicked . | . . . . . . Crushed . | . . . . . . Highest Temperature 5 | . . 5 . . . Average Temperature 3 | . . 3 . . . Received Heat Transfer 237 | . . 102 . 135 . Siege Activations . | . . . . . . Martial Activations . | . . . . . . Shielding Activations . | . . . . . . Robots Disrupted . | . . . . . . Combat Hostiles . | . . . . . . Robots Corrupted . | . . . . . . Combat Hostiles . | . . . . . . Parts Fried . | . . . . . . Impact Corruptions . | . . . . . . Robots Melted . | . . . . . . Combat Hostiles . | . . . . . . Parts Melted . | . . . . . . Heat Transferred . | . . . . . . Parts Sabotaged . | . . . . . . Parts Stolen . | . . . . . . Parts Stripped . | . . . . . . Power Chain Reactions . | . . . . . . Alert | -11 -10 -9 -8 -8 -7 ------- Run | Yrd Mat Mat Mat Sto Fac Maximum Alert Level 1 | . . 1 1 1 . Low Security (%) 71 | 100 100 84 56 48 100 Level 1 28 | . . 15 43 51 . Level 2 . | . . . . . . Level 3 . | . . . . . . Level 4 . | . . . . . . Level 5 . | . . . . . . High Security . | . . . . . . Max Security . | . . . . . . Peak Influence 325 | . 6 290 227 325 134 Initial 134 | . . 1 118 95 134 Average 132 | . 1 100 167 214 134 Influence Increases 845 | . 6 379 119 341 . Destroy 0b10 Robot/C 320 | . . 160 80 80 . Destroy 0b10 Robot/NC 30 | . . 15 . 15 . Destroy Leader 60 | . . 36 10 14 . Successful Hack 66 | . 6 40 13 7 . Disable Machine 90 | . . 15 . 75 . Destroy Structure 114 | . . 68 16 30 . Partial Spotted 15 | . . 15 . . . Lose Combat Pursuer 150 | . . 30 . 120 . Influence Decreases 711 | . . 105 172 272 162 Entered New Map 461 | . . 5 162 132 162 Time Decay 160 | . . 80 10 70 . Lost Part 80 | . . 10 . 70 . Lost Ally 10 | . . 10 . . . Squads Dispatched 4 | . . . 2 2 . Investigation 1 | . . . . 1 . Extermination . | . . . . . . Reinforcement 1 | . . . . 1 . Assault 2 | . . . 2 . . Garrison . | . . . . . . Intercept . | . . . . . . Searches Triggered . | . . . . . . Construction Impeded 1 | . . . . 1 . Haulers Reinforced . | . . . . . . Active Scanning Responses . | . . . . . . Cargo Convoy Interrupts . | . . . . . . Stealth | -11 -10 -9 -8 -8 -7 --------- Run | Yrd Mat Mat Mat Sto Fac Distress Signals 4 | . . . 2 2 . Communications Jammed . | . . . . . . Distress Signals . | . . . . . . Times Spotted 39 | . 4 14 4 17 . Peak Tracking Total 8 | . 4 7 4 8 1 Tactical Retreats 5 | . . 2 . 3 . Traps | -11 -10 -9 -8 -8 -7 ------- Run | Yrd Mat Mat Mat Sto Fac Traps Triggered . | . . . . . . Indirectly . | . . . . . . Trap Hack Attempts . | . . . . . . Triggered . | . . . . . . Disarmed . | . . . . . . Reprogrammed . | . . . . . . Reused . | . . . . . . Traps Extracted . | . . . . . . Installed . | . . . . . . Triggered . | . . . . . . Machines | -11 -10 -9 -8 -8 -7 ---------- Run | Yrd Mat Mat Mat Sto Fac Machines Disabled 6 | . . 1 . 5 . Max in Single Turn 1 | . . 1 . 1 . Garrison Access 1 | . . . 1 . . Machines Repaired . | . . . . . . Machines Dismantled . | . . . . . . Machines Sabotaged . | . . . . . . Overloaded Fab Kills . | . . . . . . Hacking | -11 -10 -9 -8 -8 -7 --------- Run | Yrd Mat Mat Mat Sto Fac Machines Accessed 11 | . 1 4 1 5 . Terminals 11 | . 1 4 1 5 . Fabricators . | . . . . . . Repair Stations . | . . . . . . Recycling Units . | . . . . . . Scanalyzers . | . . . . . . Garrison Access . | . . . . . . Total Hacks 36 | . 2 11 7 16 . Successful 13 | . 1 5 5 2 . Failed 23 | . 1 6 2 14 . Catastrophic 4 | . 1 . . 3 . Database Lockouts . | . . . . . . Manual 13 | . 2 5 5 1 . Terminals 36 | . 2 11 7 16 . Fabricators . | . . . . . . Repair Stations . | . . . . . . Recycling Units . | . . . . . . Scanalyzers . | . . . . . . Garrison Access . | . . . . . . Terminal Hacks 9 | . . 4 3 2 . Prototype ID Bank 1 | . . . 1 . . Open Door 2 | . . . . 2 . Level Access Points 1 | . . 1 . . . Branch Access Points 2 | . . 1 1 . . Terminal Index 1 | . . . 1 . . Locate Traps 1 | . . 1 . . . Hauler Manifests 1 | . . 1 . . . Fabricator Hacks . | . . . . . . Repair Station Hacks . | . . . . . . Recycling Unit Hacks . | . . . . . . Scanalyzer . | . . . . . . Garrison Access Hacks . | . . . . . . Unauthorized Hacks 4 | . 1 1 2 . . Terminals 4 | . 1 1 2 . . Assimilate 1 | . 1 . . . . Botnet 1 | . . . 1 . . Operators 2 | . . 1 1 . . Fabricators . | . . . . . . Repair Stations . | . . . . . . Recycling Units . | . . . . . . Scanalyzers . | . . . . . . Garrison Access . | . . . . . . Data Cores Recovered . | . . . . . . Used . | . . . . . . Hacking Detections 11 | . 1 4 1 5 . Full Trace Events 2 | . . . . 2 . Feedback Events . | . . . . . . Feedback Blocked . | . . . . . . Robot Schematics Acquired . | . . . . . . Robots Built . | . . . . . . Authchips . | . . . . . . Time . | . . . . . . Total Robot Build Rating . | . . . . . . Part Schematics Acquired . | . . . . . . Parts Built . | . . . . . . Authchips . | . . . . . . Time . | . . . . . . Total Part Build Rating . | . . . . . . Parts Repaired . | . . . . . . Time . | . . . . . . Parts Recycled . | . . . . . . Recycled Matter . | . . . . . . Retrieved Matter . | . . . . . . Retrieved Components . | . . . . . . Parts Scanalyzed . | . . . . . . Part Schematics Acquired . | . . . . . . Parts Damaged . | . . . . . . Bothacking | -11 -10 -9 -8 -8 -7 ------------ Run | Yrd Mat Mat Mat Sto Fac Used RIF Installer . | . . . . . . Robots Hacked . | . . . . . . Non-combat . | . . . . . . Combat . | . . . . . . Robot Hacks Applied . | . . . . . . Relay Couplers Released 2 | . . . 2 . . Machine Destruction 2 | . . . 2 . . Fabnet Peak Effective % . | . . . . . . Robots Rewired . | . . . . . . Allies Hacked . | . . . . . . Hacks Repelled . | . . . . . . Allies | -11 -10 -9 -8 -8 -7 -------- Run | Yrd Mat Mat Mat Sto Fac Total Allies 1 | . 1 . . . . Largest Group 1 | . 1 1 . . . Highest-Rated Group 10 | . 10 10 . . . Highest-Rated Ally 10 | . 10 10 . . . Total Orders . | . . . . . . Ally Attacks . | . . . . . . Total Damage . | . . . . . . Kills . | . . . . . . Allies Corrupted . | . . . . . . Allies Melted . | . . . . . . Intel | -11 -10 -9 -8 -8 -7 ------- Run | Yrd Mat Mat Mat Sto Fac Active Infowar (turns) . | . . . . . . Robot Analysis Total . | . . . . . . Derelict Logs Recovered . | . . . . . . Drone Launches . | . . . . . . Drone Recoveries . | . . . . . . Exploration | -11 -10 -9 -8 -8 -7 ------------- Run | Yrd Mat Mat Mat Sto Fac Turns Passed 414 | 4 54 177 30 147 2 Spaces Moved 598 | 1 103 200 47 247 . Core 194 | 1 103 52 . 38 . Treads . | . . . . . . Legs . | . . . . . . Wheels . | . . . . . . Hover 148 | . . 148 . . . Flight 256 | . . . 47 209 . Fastest Speed 31 | 50 50 42 31 31 . Average Speed 42 | 50 50 45 33 37 . Slowest Speed 100 | 50 50 100 34 50 . Overloaded Moves . | . . . . . . Propulsion Burnouts . | . . . . . . Robots Hopped 7 | . . . 2 5 . Potential Cave-ins . | . . . . . . Cave-ins Triggered . | . . . . . . Exploration Rate (%) 24 | 2 30 28 10 51 . Regions Visited 5 Branch Regions 1 Pre-discovered Areas . | . . . . . . Known Exits Taken 2 | . . 1 1 . . Unknown Exits Taken 3 | 1 1 . . 1 . Scrap Searched . | . . . . . . Spaces Dug 71 | . . 19 25 27 . Terrain Destroyed 174 | . . 111 25 38 . Melee 2 | . . 2 . . . Projectile . | . . . . . . AOE 172 | . . 109 25 38 . Terrain Rammed . | . . . . . . Walls Destroyed . | . . . . . . Machines Disabled . | . . . . . . Actions | -11 -10 -9 -8 -8 -7 --------- Run | Yrd Mat Mat Mat Sto Fac Total 709 | 5 104 271 55 272 2 Wait 26 | . 1 23 . 2 . Move 581 | . 102 199 43 237 . Hop 5 | . . . 1 4 . Pick Up 11 | . 1 9 . 1 . Fast Attach 6 | . . 3 2 1 . Attach 18 | 2 . 6 4 4 2 Detach 11 | . . 6 1 4 . Swap . | . . . . . . Drop 11 | 3 . 7 1 . . Fire 27 | . . 16 3 8 . Melee 4 | . . 2 . 2 . Ram 2 | . . . . 2 . Kick . | . . . . . . Crush . | . . . . . . Escape Stasis . | . . . . . . Rewire . | . . . . . . Trap . | . . . . . . Miscellaneous 7 | . . . . 7 . Route ------- -11/Scrapyard -10/Materials -9/Materials (discovered 4 exits: *Mat x3 / Min) -8/Materials (discovered 2 exits: *Sto x2) -8/Storage -7/Factory History --------- Turn | Location | Event 1 | -11/Scrapyard | Released all parts (6) 5 | -11/Scrapyard | Discovered new exit (range 0) 5 | -11/Scrapyard | Entered Materials 50 | -10/Materials | Discovered new exit (range 16) 59 | -10/Materials | Entered another Materials area 59 | -9/Materials | Accompanied by 1 ally 59 | -9/Materials | Evolved 2 slots: Propulsion x1, Utility x1 112 | -9/Materials | Identified exit to Mines 151 | -9/Materials | Identified exit to Materials 190 | -9/Materials | Core integrity fell below 50% 236 | -9/Materials | Entered another Materials area 236 | -8/Materials | Evolved 2 slots: Propulsion x1, Utility x1 241 | -8/Materials | Identified exit to Storage 266 | -8/Materials | Entered Storage 360 | -8/Storage | Lost 3 parts (1p1n1w) 389 | -8/Storage | Door terminal overloaded 392 | -8/Storage | Found Prototype Processor 396 | -8/Storage | Core integrity fell below 50% 405 | -8/Storage | Discovered new exit (range 16) 413 | -8/Storage | Entered Factory 413 | -7/Factory | Evolved 2 slots: Utility x2 413 | -7/Factory | Identified Exp. Targeting Computer 415 | -7/Factory | Self-destructed Last Messages --------------- 00359_ Acquired 20 matter. 00363_ Flight Unit destroyed. 00367_ Dismantling Sealed Heavy Doors with Plasma Cutter. 00380_ Flight Unit destroyed. 00382_ Dismantling Sealed Heavy Doors with Plasma Cutter. 00386_ Plasma Cutter destroyed. 00389_ System overload, Sealed Heavy Doors opened. 00389_ Door Terminal disabled. 00392_ Acquired Prototype Processor. 00394_ Slammed into Y-45 Defender. 00399_ Slammed into U-05 Engineer. 00399_ ALERT: Construction progress impeded, dispatching reinforcements to local area. 00405_ EXIT=FOUND 00409_ Acquired 15 matter. PARAMETERS=UTILITY+2 LOCATION=UNKNOWN GOAL=ESCAPE 00413_ Identified Exp. Targeting Computer. 00415_ O-24 Administrator: "IFF HANDSHAKE FAILED. SECURING TERMINAL." Map ----- +----------------------------------------------------+ | ?????????????????????????????????????????????????? | | ?????????????????????????????????????????????????? | | ?????????????????????????????????????????????????? | | ?????????????????????????????????????????????????? | | ?????????????????????????????????????????????????? | | ?????????????????????????????????????????????????? | | ?????????????????????????????????????????????????? | | ?????????????????????????????????????????????????? | | ?????????????????????????????????????????????????? | | ?????????????????????????????????????????????????? | | ?????????????????????????????????????????????????? | | ????????????????????????#????????????????????????? | | ???????????????????????? ????????????????????????? | | ???????????????????????? ""??????????????????????? | | ???????????????????????? ""????????##????????????? | | ???????????????????????? ""??????? ?????????????? | | ???????????????????????? ?????? #?????????????? | | ???????????????????????? ????? #?????????????? | | ???????????????????????? ???? ##????????????? | | ???????????????????????? ??? T#????????????? | | ??????????????????????###+#### #????????????? | | ??????????????????????# #?????????????? | | ??????????????????????# #?????????????? | | ??????????????????????# #?????????????? | | ??????????????????????+ #?????????????? | | ??????????????????????# @ #?????????????? | | ??????????????????????# ###+##???????????????? | | ??????????????????????# #????????????????????? | | ??????????????????????#######????????????????????? | | ?????????????????????????????????????????????????? | | ?????????????????????????????????????????????????? | | ?????????????????????????????????????????????????? | | ?????????????????????????????????????????????????? | | ?????????????????????????????????????????????????? | | ?????????????????????????????????????????????????? | | ?????????????????????????????????????????????????? | | ?????????????????????????????????????????????????? | | ?????????????????????????????????????????????????? | | ?????????????????????????????????????????????????? | | ?????????????????????????????????????????????????? | | ?????????????????????????????????????????????????? | | ?????????????????????????????????????????????????? | | ?????????????????????????????????????????????????? | | ?????????????????????????????????????????????????? | | ?????????????????????????????????????????????????? | | ?????????????????????????????????????????????????? | | ?????????????????????????????????????????????????? | | ?????????????????????????????????????????????????? | | ?????????????????????????????????????????????????? | | ?????????????????????????????????????????????????? | +----------------------------------------------------+ Best States ------------- Heat Dissipation 31 Energy Generation 10 Energy Capacity 125 Matter Stores 280 Matter Capacity 300 Sight Range 16 Terrain Scan Density 10 Evasion (%) 63 Recoil Reduction 2 Item Schematics ----------------- None Robot Schematics ------------------ None Fabricated ------------ Nothing Repaired ---------- Nothing Alien Tech Used ----------------- None Achievements -------------- None Challenges ------------ None Game ------ Seed GravitonNodeBotcube Manual? 0 Play Time 00:11:42 Cumulative 528.1 hours Start 2025.06.08 @ 21:56:56 End 2025.06.08 @ 23:16:07 Sessions 3 Manual Loads 0 Difficulty Rogue Special Mode None Game No. 595 Rogue 595 Adventurer 0 Explorer 0 Win Type - Total 16 Types 10/0/5/1/0/0/0/0/0/0 Lore% 83 Gallery% 82 Achievement% 82 Wizard Run 0 Options --------- Layout 0 ASCII 0 Keyboard 0 Movement Numpad Keybinds 0 Fullscreen 1 Font 18/SmallcapsGlow Map View 76x50 Zoom Use 0% Tactical HUD 1 Map Filters NONE Filters NONE Steam 1 RUN: bebd394f-9523-45ba-bb3c-84525ec44fbc